bitfinex-derivatives/quotes_ETHF0:USTF0_20240925
["timestamp","ask_amount","ask_price","bid_price","bid_amount"]
[1727263280664,1.48199853,2617.8,2617.6,1.36857615]
[1727263280865,1.48199853,2617.8,2617.7,8.17740324]
[1727263281164,1.48199853,2617.8,2617.6,0.3691]
[1727263281469,1.48199853,2617.8,2617.7,7.81898708]
[1727263281663,3.08752351,2617.8,2617.7,7.81898708]
[1727263281867,3.08752351,2617.8,2617.6,0.3691]
[1727263282074,1.86719664,2617.7,2617.6,0.3691]
[1727263282966,0.3768,2617.7,2617.6,0.3691]
[1727263287668,2.75532351,2617.7,2617.6,0.3691]
[1727263288571,2.75532351,2617.7,2617.4,0.99947615]
[1727263288769,1.88199611,2617.6,2617.4,1.39897615]
[1727263288961,1.88199611,2617.6,2617.5,7.96478005]
[1727263291364,5.08979611,2617.6,2617.5,7.96478005]
[1727263291568,10.50672351,2617.6,2617.3,0.99947615]
[1727263291866,10.50672351,2617.6,2617.3,0.3735]
[1727263291867,1.49063745,2617.4,2617.3,0.3735]
[1727263292073,1.49064061,2617.4,2617.3,0.3735]
[1727263292270,1.49064061,2617.4,2617.3,1.37297615]
[1727263292659,1.49064061,2617.5,2617.3,10.55313791]
[1727263292860,1.49064061,2617.5,2617.4,0.99947615]
[1727263293271,1.49064061,2617.5,2617.4,13.81503138]
[1727263293860,4.69844061,2617.6,2617.4,15.06510095]
[1727263294073,4.69844061,2617.6,2617.4,9.99423138]
[1727263294971,4.69844061,2617.6,2617.5,0.99947615]
[1727263295371,4.69844061,2617.6,2617.5,8.82988588]
[1727263295567,1.49064061,2617.7,2617.5,9.08051647]
[1727263295874,1.49064061,2617.7,2617.6,1.37033438]
[1727263296176,1.49064061,2617.7,2617.6,9.3779063]
[1727263296969,1.49064061,2617.7,2617.6,8.37557192]
[1727263297477,1.49064061,2617.7,2617.6,9.3779063]
[1727263299569,1.98752351,2617.8,2617.6,9.3779063]
[1727263299880,1.98752351,2617.8,2617.7,0.3708]
[1727263300175,1.98752351,2617.8,2617.7,0.7407]
[1727263303383,3.08752351,2617.8,2617.7,0.7407]
[1727263308074,1.1,2617.8,2617.5,1.00233438]
[1727263308281,1.1,2617.8,2617.5,1.40363438]
[1727263308282,1.1,2617.6,2617.5,1.40363438]
[1727263308674,1.1,2617.6,2617.5,9.53314925]
[1727263309882,3.08853195,2617.6,2617.5,9.53314925]
[1727263310486,1.1,2617.6,2617.5,9.53314925]
[1727263311485,3.08853195,2617.6,2617.5,9.53314925]
[1727263312093,3.08853195,2617.6,2617.5,8.53081487]
[1727263313291,3.08853195,2617.6,2617.5,8.12951487]
[1727263313693,1.1,2617.6,2617.5,9.13184925]
[1727263313988,1.1,2617.6,2617.5,1.00233438]
[1727263314391,1.1,2617.6,2617.5,9.15905956]
[1727263315183,3.08853195,2617.6,2617.5,9.15905956]
[1727263316378,1.1,2617.6,2617.5,9.15905956]
[1727263318092,3.08853195,2617.6,2617.5,9.15905956]
[1727263318393,1.1,2617.6,2617.5,9.15905956]
[1727263318984,6.67313195,2617.7,2617.5,9.15905956]
[1727263319393,6.67313195,2617.7,2617.6,0.402]
[1727263320393,1.49138522,2617.7,2617.6,23.33325656]
[1727263320582,1.49138522,2617.9,2617.6,18.62193997]
[1727263320786,1.49130416,2617.9,2617.8,1.00252712]
[1727263320986,1.49130416,2617.9,2617.8,2.25299888]
[1727263321190,1.4793,2617.9,2617.8,8.87488272]
[1727263321387,0.3793,2617.9,2617.8,8.87488272]
[1727263321590,2.36783195,2617.9,2617.8,7.8723556]
[1727263321796,2.36783195,2617.9,2617.8,8.87488272]
[1727263321797,0.3793,2617.9,2617.8,8.87488272]
[1727263322202,1.8704974,2617.9,2617.8,8.87488272]
[1727263322389,1.4911974,2617.9,2617.8,8.87488272]
[1727263322695,1.4911974,2617.9,2617.8,9.64888272]
[1727263322895,6.29633195,2618.0,2617.8,9.64888272]
[1727263323096,6.29633195,2618.0,2617.8,8.6463556]
[1727263324489,1.49092014,2617.9,2617.8,8.6463556]
[1727263324793,1.49092014,2617.9,2617.8,8.2555556]
[1727263325194,2.59092014,2617.9,2617.8,8.2555556]
[1727263325596,1.1,2617.9,2617.8,7.8723556]
[1727263325791,2.59069594,2617.9,2617.8,7.8723556]
[1727263325982,1.1,2617.9,2617.8,7.8723556]
[1727263326397,2.59070579,2617.9,2617.8,7.8723556]
[1727263326989,2.97850579,2617.9,2617.8,7.8723556]
[1727263327888,1.4878,2617.9,2617.8,7.8723556]
[1727263328093,1.1,2617.9,2617.8,7.8723556]
[1727263328289,2.59099523,2617.9,2617.8,7.8723556]
[1727263328488,2.59099523,2617.9,2617.8,8.2691556]
[1727263328891,1.1,2617.9,2617.8,8.2691556]
[1727263329198,1.4910333,2617.9,2617.8,8.2691556]
[1727263329396,1.4910077,2617.9,2617.8,8.2691556]
[1727263332800,1.1,2617.9,2617.7,1.00252712]
[1727263333100,2.2518,2617.8,2617.6,0.402]
[1727263333298,1.49072865,2617.7,2617.6,0.402]
[1727263333693,1.49072865,2617.7,2617.6,8.31844742]
[1727263333996,1.49072865,2617.7,2617.6,8.70264742]
[1727263336389,1.49072865,2617.7,2617.6,9.80264742]
[1727263336707,1.49072865,2617.7,2617.6,14.02084742]
[1727263337397,1.98853195,2617.9,2617.6,15.02337454]
[1727263337398,1.49072865,2617.8,2617.6,15.02337454]
[1727263337703,1.49072865,2617.8,2617.6,11.20337454]
[1727263337888,1.98853195,2617.9,2617.7,1.1]
[1727263338093,1.49114523,2617.8,2617.7,1.1]
[1727263338500,1.49114523,2617.8,2617.7,9.06440873]
[1727263338703,1.49114523,2617.8,2617.7,10.06693585]
[1727263338905,1.49114523,2617.9,2617.7,10.06693585]
[1727263340993,4.69894523,2617.9,2617.7,10.06693585]
[1727263341806,1.49114523,2617.8,2617.7,7.96440873]
[1727263343304,5.79894523,2617.9,2617.7,8.96693585]
[1727263343699,1.49114523,2617.8,2617.7,8.96693585]
[1727263344010,1.49114523,2617.8,2617.7,7.96440873]
[1727263344210,1.49114523,2617.8,2617.7,8.96693585]
[1727263344510,1.49114523,2617.8,2617.7,7.96440873]
[1727263344811,5.79894523,2617.9,2617.7,8.96693585]
[1727263345505,1.49114523,2617.8,2617.7,7.96440873]
[1727263347704,12.41114523,2617.8,2617.6,1.00252712]
[1727263347904,12.41114523,2617.8,2617.5,1.50379069]
[1727263347905,3.15293195,2617.7,2617.5,0.3842]
[1727263348500,1.49088776,2617.6,2617.5,0.3842]
[1727263348812,3.15293195,2617.7,2617.5,0.3842]
[1727263349004,1.49083067,2617.6,2617.5,0.3842]
[1727263350317,1.49083067,2617.7,2617.5,13.8212745]
[1727263350606,1.49083067,2617.7,2617.6,1.1]
[1727263350809,1.49083067,2617.8,2617.6,2.10252712]
[1727263351008,1.49083067,2617.8,2617.6,10.13111055]
[1727263353905,1.49083067,2617.8,2617.6,9.12858343]
[1727263354110,1.49083067,2617.7,2617.6,9.12858343]
[1727263356710,1.49083067,2617.7,2617.6,8.02858343]
[1727263357610,1.49083067,2617.7,2617.6,12.94858343]
[1727263357813,1.49083067,2617.7,2617.6,13.95111055]
[1727263358013,1.49083067,2617.8,2617.6,13.95111055]
[1727263358209,4.69863067,2617.9,2617.7,2.74220716]
[1727263358514,3.2078,2617.9,2617.8,9.17158867]
[1727263358811,3.2078,2617.9,2617.3,4.1988]
[1727263358812,3.2078,2617.5,2617.2,0.02215373]
[1727263359013,1.1,2617.3,2616.7,4.49113548]
[1727263359208,3.2078,2617.0,2616.7,4.49113548]
[1727263359411,1.1,2616.8,2616.7,4.49113548]
[1727263359615,1.98587887,2616.8,2616.7,1.50289977]
[1727263359816,1.98587887,2616.8,2616.7,4.49113548]
[1727263360708,4.25147887,2616.9,2616.7,4.49113548]
[1727263361107,3.15147887,2616.9,2616.7,4.49113548]
[1727263361506,0.34489696,2616.8,2616.7,1.50289977]
[1727263361715,1.83256022,2616.8,2616.7,1.50289977]
[1727263361923,1.83256022,2616.8,2616.7,5.99403525]
[1727263362624,0.3367399,2616.8,2616.7,5.99403525]
[1727263363115,0.3367399,2616.8,2616.3,0.7707]
[1727263363116,1.82440316,2616.8,2616.3,0.7707]
[1727263363427,0.99143031,2616.6,2616.3,2.27359977]
[1727263363621,0.99143031,2616.6,2616.5,4.49113548]
[1727263363809,3.54453709,2616.7,2616.5,4.49113548]
[1727263363810,5.03220035,2616.7,2616.5,4.49113548]
[1727263364013,1.48766326,2616.6,2616.5,4.49113548]
[1727263364619,5.03220035,2616.7,2616.5,4.49113548]
[1727263364920,0.33659653,2616.6,2616.5,4.49113548]
[1727263365419,0.33659653,2616.6,2616.5,5.99403525]
[1727263365619,1.32697482,2616.6,2616.5,5.99403525]
[1727263365819,0.33659653,2616.6,2616.5,5.99403525]
[1727263366634,4.19817829,2616.7,2616.5,5.99403525]
[1727263366833,4.19817829,2616.7,2616.6,4.49113548]
[1727263367035,4.53441328,2616.7,2616.6,4.49113548]
[1727263367232,0.33623499,2616.7,2616.6,5.99403525]
[1727263367738,0.33623499,2616.7,2616.6,13.9673351]
[1727263367928,0.33623499,2616.7,2616.6,14.3623351]
[1727263369134,0.33623499,2616.7,2616.2,3.5946]
[1727263369135,11.93403499,2616.7,2616.3,0.395]
[1727263369345,5.5978,2616.4,2616.3,4.88613548]
[1727263369531,5.93403499,2616.4,2616.3,4.88613548]
[1727263369737,5.93403499,2616.4,2616.3,4.49113548]
[1727263370132,6.67763499,2616.4,2616.3,4.49113548]
[1727263370829,6.67763499,2616.4,2615.4,2.39]
[1727263370830,12.67763499,2616.4,2615.4,2.39]
[1727263371031,3.2078,2616.0,2615.6,3.2078]
[1727263371237,3.2078,2616.0,2615.7,12.1456443]
[1727263371430,3.2078,2616.0,2615.9,2.67073548]
[1727263371932,4.12321454,2616.4,2615.9,4.17363525]
[1727263371933,3.2078,2616.3,2615.9,4.17363525]
[1727263372132,3.2078,2616.3,2616.2,2.67073548]
[1727263372436,3.54342428,2616.3,2616.2,2.67073548]
[1727263372845,3.2078,2616.3,2616.2,2.67073548]
[1727263374653,3.2078,2616.3,2616.2,4.17363525]
[1727263378452,3.2078,2616.7,2616.2,14.61530916]
[1727263378648,3.2078,2616.7,2616.6,2.67073548]
[1727263379154,3.2078,2616.7,2616.6,4.17363525]
[1727263381853,3.2078,2617.1,2616.6,14.62161928]
[1727263382062,3.2078,2617.1,2617.0,2.67073548]
[1727263383258,3.2078,2617.1,2617.0,4.17363525]
[1727263384157,3.2078,2617.1,2617.0,4.53883525]
[1727263384764,3.2078,2617.1,2617.0,4.91523525]
[1727263385753,3.2078,2617.5,2617.0,15.42136225]
[1727263385962,3.2078,2617.5,2617.4,2.67073548]
[1727263386158,3.2078,2617.5,2617.4,5.06073548]
[1727263386353,3.2078,2617.5,2617.4,4.17363525]
[1727263389556,3.54354697,2617.5,2617.4,4.17363525]
[1727263390671,3.2078,2617.5,2617.4,4.17363525]
[1727263390967,3.54358971,2617.5,2617.4,4.17363525]
[1727263391170,5.93358971,2617.5,2617.3,0.3825]
[1727263391471,3.2078,2617.5,2617.4,2.67073548]
[1727263391659,3.54364645,2617.5,2617.4,2.67073548]
[1727263391860,3.54364645,2617.5,2617.4,4.17363525]
[1727263392263,3.54364645,2617.5,2617.4,14.78299903]
[1727263392469,0.98961454,2617.8,2617.4,14.78299903]
[1727263392470,3.2078,2617.8,2617.4,14.78299903]
[1727263392672,3.2078,2617.8,2617.7,2.67073548]
[1727263392870,3.54364179,2617.8,2617.7,2.67073548]
[1727263394566,3.54364179,2617.8,2617.7,4.17363525]
[1727263394772,3.2078,2617.8,2617.7,4.17363525]
[1727263394963,3.543573,2617.8,2617.7,4.17363525]
[1727263401366,3.2078,2617.8,2617.7,4.17363525]
[1727263401879,3.54361098,2617.8,2617.7,4.17363525]
[1727263405174,3.2078,2617.8,2617.7,4.17363525]
[1727263405380,3.54368689,2617.8,2617.7,4.17363525]
[1727263408579,3.2078,2617.8,2617.7,4.17363525]
[1727263408976,3.54367494,2617.8,2617.7,4.17363525]
[1727263410985,3.54377037,2617.8,2617.7,4.17363525]
[1727263412077,3.2078,2617.8,2617.7,4.17363525]
[1727263412280,3.5438166,2617.8,2617.7,4.17363525]
[1727263412490,3.5438166,2617.8,2617.7,4.54293525]
[1727263416087,5.9338166,2617.8,2617.7,4.54293525]
[1727263417588,6.92343114,2617.8,2617.7,4.54293525]
[1727263419193,6.58741454,2617.8,2617.7,4.54293525]
[1727263419388,6.92386478,2617.8,2617.7,4.54293525]
[1727263420387,5.93425024,2617.8,2617.7,4.54293525]
[1727263421184,3.54425024,2617.8,2617.7,4.54293525]
[1727263421683,5.0319135,2617.8,2617.7,4.54293525]
[1727263422192,4.69546326,2617.8,2617.7,4.54293525]
[1727263423101,3.2078,2617.8,2617.7,4.54293525]
[1727263423499,5.19367887,2617.8,2617.7,4.54293525]
[1727263424196,3.2078,2617.8,2617.7,4.54293525]
[1727263424586,5.19367887,2617.8,2617.7,4.54293525]
[1727263425595,3.2078,2617.8,2617.7,4.54293525]
[1727263426389,4.3078,2617.8,2617.7,3.04003548]
[1727263426594,6.79269016,2617.8,2617.7,2.67073548]
[1727263426790,7.19499016,2617.8,2617.7,2.67073548]
[1727263427603,4.7101,2617.8,2617.7,2.67073548]
[1727263428101,14.5301,2617.8,2617.0,1.1]
[1727263428291,5.69217537,2617.5,2617.3,3.45763548]
[1727263429393,2.48437537,2617.4,2617.3,3.45763548]
[1727263430897,2.48437537,2617.4,2617.3,0.7869]
[1727263431090,2.48437537,2617.4,2617.3,4.96053525]
[1727263432198,1.98786305,2617.4,2617.3,15.35503039]
[1727263432401,5.19566305,2617.5,2617.3,15.35503039]
[1727263432603,5.19566305,2617.5,2617.4,2.67073548]
[1727263432999,2.6014,2617.5,2617.4,16.32930448]
[1727263435595,1.98786305,2617.6,2617.4,16.32930448]
[1727263435796,3.2078,2618.0,2617.5,5.06073548]
[1727263435797,1.98786305,2617.7,2617.5,5.06073548]
[1727263435996,1.98786305,2617.7,2617.6,2.67073548]
[1727263436192,1.98786305,2617.7,2617.6,10.61897172]
[1727263436403,1.98786305,2617.8,2617.6,12.12187149]
[1727263436599,1.98786305,2617.8,2617.7,0.7625]
[1727263436804,1.98786305,2617.8,2617.7,3.43323548]
[1727263437109,1.98786305,2617.8,2617.7,4.93613525]
[1727263442104,2.48437537,2617.9,2617.7,4.93613525]
[1727263442410,2.48437537,2617.9,2617.7,2.26539977]
[1727263442609,2.48437537,2617.9,2617.8,2.67073548]
[1727263442909,2.48437537,2617.9,2617.8,4.17363525]
[1727263443317,2.48437537,2617.9,2617.8,4.55023525]
[1727263447001,2.48437537,2617.9,2617.8,4.17363525]
[1727263447207,2.7767,2617.9,2617.8,2.67073548]
[1727263448514,1.74041297,2617.9,2617.8,2.67073548]
[1727263449314,4.72167443,2617.9,2617.8,2.67073548]
[1727263450517,1.74041297,2617.9,2617.8,2.67073548]
[1727263451017,4.72167443,2617.9,2617.8,2.67073548]
[1727263451908,1.74041297,2617.9,2617.8,2.67073548]
[1727263452113,11.56041297,2617.9,2617.0,1.49673257]
[1727263452305,1.49014515,2617.2,2617.1,0.3875]
[1727263452507,1.49014515,2617.2,2617.1,9.66941641]
[1727263452703,1.49014707,2617.2,2617.1,13.23675166]
[1727263455312,1.49014707,2617.2,2617.1,16.36808774]
[1727263455517,1.49014707,2617.2,2617.1,17.46808774]
[1727263455920,1.49014707,2617.3,2617.1,17.46808774]
[1727263456123,1.49014707,2617.2,2617.1,14.30365226]
[1727263456516,1.49014707,2617.2,2617.1,16.36808774]
[1727263456715,1.49014707,2617.3,2617.1,16.36808774]
[1727263457024,1.98712625,2617.4,2617.3,2.06443548]
[1727263457528,1.98712625,2617.4,2617.3,3.56733525]
[1727263459224,5.19492625,2617.5,2617.3,11.50032365]
[1727263459418,5.19492625,2617.5,2617.4,3.95203548]
[1727263459627,5.19492625,2617.5,2617.4,5.45493525]
[1727263460823,4.69753558,2617.5,2617.4,13.25338339]
[1727263461730,3.2078,2617.5,2617.4,13.25338339]
[1727263464734,1.98712625,2617.6,2617.4,13.25338339]
[1727263464921,1.98712625,2617.6,2617.5,2.06443548]
[1727263465226,3.58390782,2617.7,2617.5,2.44423548]
[1727263465431,3.58390782,2617.7,2617.6,2.06443548]
[1727263466827,3.96000782,2617.7,2617.6,2.06443548]
[1727263467635,3.96000782,2617.7,2617.6,3.56733525]
[1727263469941,4.20501133,2617.7,2617.6,3.56733525]
[1727263472542,4.20405572,2617.7,2617.6,3.56733525]
[1727263472836,3.95909458,2617.7,2617.6,3.56733525]
[1727263473041,3.95909765,2617.7,2617.6,3.56733525]
[1727263473635,1.4761,2617.7,2617.6,3.56733525]
[1727263474041,3.95904151,2617.7,2617.6,3.56733525]
[1727263474245,1.4761,2617.7,2617.6,3.56733525]
[1727263474743,3.46075026,2617.8,2617.6,3.56733525]
[1727263475040,2.48310449,2617.7,2617.6,1.50289977]
[1727263475440,2.48310449,2617.7,2617.6,3.56733525]
[1727263476448,3.2078,2617.8,2617.6,3.56733525]
[1727263476647,3.2078,2617.8,2617.7,2.06443548]
[1727263476844,4.3078,2617.8,2617.7,2.06443548]
[1727263480145,7.28906146,2617.8,2617.7,2.06443548]
[1727263480544,4.3078,2617.8,2617.7,2.06443548]
[1727263484349,7.28906146,2617.8,2617.7,2.06443548]
[1727263484749,4.3078,2617.8,2617.7,2.06443548]
[1727263485052,3.2078,2617.8,2617.7,2.06443548]
[1727263486341,4.3078,2617.8,2617.7,2.06443548]
[1727263490949,4.3078,2617.8,2617.5,0.3798]
[1727263491149,4.3078,2617.8,2617.7,2.06443548]
[1727263495651,4.3078,2617.8,2617.5,0.3798]
[1727263495652,6.6832492,2617.8,2617.5,0.3798]
[1727263495850,6.6832492,2617.8,2617.5,1.88269977]
[1727263495851,1.1,2617.6,2617.5,1.88269977]
[1727263496052,1.1,2617.6,2617.5,2.44423548]
[1727263497358,6.45634223,2617.6,2616.9,1.00189631]
[1727263497654,3.2078,2617.3,2617.2,0.782]
[1727263497956,5.69280312,2617.3,2617.2,0.782]
[1727263498256,5.69280312,2617.3,2617.2,4.34933525]
[1727263504361,3.2078,2617.3,2617.2,4.34933525]
[1727263505059,2.48500312,2617.4,2617.2,4.34933525]
[1727263505264,2.48500312,2617.4,2617.3,2.06443548]
[1727263505749,3.58500312,2617.4,2617.2,0.782]
[1727263505955,4.3078,2617.3,2616.8,0.3753]
[1727263506160,6.79179028,2616.9,2616.8,0.3753]
[1727263506372,2.98126146,2617.3,2616.9,2.06443548]
[1727263506373,2.48399028,2617.0,2616.9,2.06443548]
[1727263506955,2.48399028,2617.0,2616.9,3.56733525]
[1727263507462,2.48399028,2617.0,2616.9,12.90245322]
[1727263507463,1.98582944,2617.0,2616.9,12.90245322]
[1727263507662,5.69179028,2617.2,2616.9,12.90245322]
[1727263507663,1.98582944,2617.1,2616.9,12.90245322]
[1727263507960,1.48949754,2617.0,2616.9,10.83801774]
[1727263508461,1.48949754,2617.0,2616.9,12.90245322]
[1727263510765,1.48949754,2617.0,2616.9,11.80245322]
[1727263511070,1.98582944,2617.0,2616.9,3.94683525]
[1727263513153,1.98582944,2617.1,2616.9,3.94683525]
[1727263513359,1.98582944,2617.1,2616.9,1.88239977]
[1727263513564,1.98582944,2617.0,2616.9,1.88239977]
[1727263513766,1.98582944,2617.1,2616.9,1.88239977]
[1727263513961,1.98582944,2617.0,2616.9,1.88239977]
[1727263514371,1.98582944,2617.1,2616.9,3.94683525]
[1727263514667,1.98582944,2617.1,2617.0,1.1]
[1727263514874,1.48864153,2617.1,2617.0,7.15988926]
[1727263515169,0.99248613,2617.1,2617.0,16.60989041]
[1727263515668,3.2968,2617.9,2617.1,3.8208]
[1727263515859,3.2078,2618.5,2617.8,2.60155114]
[1727263516060,2.48399028,2618.9,2618.4,1.1]
[1727263516269,0.4025,2619.0,2618.7,1.1]
[1727263516468,3.2078,2618.8,2618.7,1.1]
[1727263516664,3.2078,2619.1,2618.8,8.23599476]
[1727263516868,2.98126146,2619.8,2618.9,4.3078]
[1727263516869,0.4025,2619.4,2618.9,4.3078]
[1727263517161,0.4025,2619.4,2619.2,1.1]
[1727263518274,0.4025,2619.4,2619.2,2.38]
[1727263519078,0.4025,2619.4,2618.9,0.7768]
[1727263519372,0.4025,2619.4,2619.0,7.89548555]
[1727263519373,3.2078,2619.2,2619.0,7.89548555]
[1727263519868,3.2078,2619.2,2618.3,2.7567]
[1727263519869,5.5878,2619.2,2618.3,2.7567]
[1727263520070,3.2078,2618.9,2618.3,3.1455]
[1727263520373,3.2078,2618.9,2618.6,12.26099535]
[1727263520568,0.3664,2618.8,2618.3,15.40649535]
[1727263520766,0.3664,2618.8,2618.7,7.86370012]
[1727263520971,0.3664,2618.8,2618.6,7.90751797]
[1727263521167,0.3664,2618.8,2618.4,7.90751797]
[1727263521563,0.3664,2618.8,2618.7,7.90751797]
[1727263521759,0.3664,2618.8,2618.5,12.04895387]
[1727263521968,0.3664,2618.8,2618.5,7.90751797]
[1727263522265,0.3664,2618.8,2618.3,3.1455]
[1727263522471,0.3664,2618.8,2618.6,7.81153657]
[1727263522674,0.3664,2618.8,2618.5,12.16727432]
[1727263522972,0.3664,2618.8,2618.7,7.91377167]
[1727263523377,0.3664,2618.8,2618.6,12.26950942]
[1727263523669,0.3664,2618.8,2618.5,2.38]
[1727263524071,0.3664,2618.8,2618.7,7.88851431]
[1727263524266,0.3664,2618.8,2618.6,12.10594522]
[1727263524467,0.3664,2618.8,2618.5,2.38]
[1727263524667,0.3664,2618.8,2618.7,7.88851431]
[1727263525078,0.3664,2618.8,2618.5,2.38]
[1727263525376,0.3664,2618.8,2618.7,7.92799714]
[1727263525775,0.3664,2618.8,2618.5,2.38]
[1727263526167,0.3664,2618.8,2618.7,7.94372976]
[1727263526371,0.3664,2618.8,2618.6,12.03278612]
[1727263526668,0.3664,2618.8,2618.3,3.1455]
[1727263527079,0.3664,2618.8,2618.4,8.21023148]
[1727263528681,0.3664,2618.8,2618.3,3.1455]
[1727263529074,0.3664,2618.8,2618.4,7.84451371]
[1727263529577,0.3664,2618.8,2618.3,3.1455]
[1727263529976,0.3664,2618.8,2618.4,8.21840512]
[1727263530377,0.3664,2618.8,2618.3,3.1455]
[1727263530683,0.3664,2618.8,2618.4,8.21840512]
[1727263531184,0.3664,2618.8,2618.3,3.1455]
[1727263531580,0.3664,2618.8,2618.4,7.91893483]
[1727263531777,0.3664,2618.8,2618.3,3.1455]
[1727263532271,0.3664,2618.8,2618.4,8.04286178]
[1727263532472,0.3664,2618.8,2618.3,3.1455]
[1727263532874,0.3664,2618.8,2618.4,8.04286178]
[1727263533271,0.3664,2618.8,2618.3,3.1455]
[1727263533674,0.3664,2618.8,2618.4,8.20096198]
[1727263534082,0.3664,2618.8,2618.3,3.1455]
[1727263534468,0.3664,2618.8,2618.7,2.38]
[1727263537087,3.2078,2618.9,2618.7,2.38]
[1727263537482,3.2078,2618.9,2618.8,0.3685]
[1727263538884,3.5785,2619.2,2618.8,0.3685]
[1727263540481,3.5785,2619.2,2618.9,2.38]
[1727263543995,3.5785,2619.2,2618.4,0.3766]
[1727263543996,3.5785,2619.2,2618.7,2.38]
[1727263544189,3.2078,2618.9,2618.5,2.7454]
[1727263544392,3.2078,2618.9,2618.5,14.83728577]
[1727263544692,0.3989,2618.8,2618.5,2.7454]
[1727263544988,0.3989,2618.8,2618.6,12.37646561]
[1727263545195,0.3989,2618.8,2618.6,4.25939542]
[1727263547597,0.3989,2618.8,2618.7,8.21442271]
[1727263547799,0.3989,2618.8,2618.6,4.25939542]
[1727263548096,0.3989,2618.8,2618.5,2.7454]
[1727263548097,0.3989,2618.8,2618.7,8.02024902]
[1727263548487,0.3989,2618.8,2618.6,12.3415267]
[1727263548699,0.3989,2618.8,2618.5,2.7454]
[1727263548995,0.3989,2618.8,2618.7,7.87887512]
[1727263549295,0.3989,2618.8,2618.5,2.7454]
[1727263549802,0.3989,2618.8,2618.7,7.87887512]
[1727263549988,0.3989,2618.8,2618.6,12.19947681]
[1727263550185,0.3989,2618.8,2618.5,2.7454]
[1727263550495,0.3989,2618.8,2618.7,8.04286117]
[1727263550889,0.3989,2618.8,2618.5,2.7454]
[1727263551086,3.2078,2618.9,2618.5,2.7454]
[1727263551295,3.2078,2618.9,2618.7,10.29749866]
[1727263551482,3.2078,2618.9,2618.7,2.38]
[1727263552091,3.2078,2618.9,2618.8,7.91749866]
[1727263552391,3.2078,2618.9,2618.7,2.38]
[1727263552708,3.2078,2618.9,2618.8,8.35098803]
[1727263552996,0.4011,2619.0,2618.8,0.3942]
[1727263553197,3.2078,2619.3,2618.9,2.38]
[1727263553385,6.49372151,2619.9,2618.9,2.38]
[1727263553386,0.4011,2619.4,2619.1,2.38]
[1727263556387,3.6089,2619.4,2619.1,2.38]
[1727263560401,0.4011,2619.4,2619.2,8.0376066]
[1727263560895,0.4011,2619.4,2619.1,2.38]
[1727263561293,2.37382151,2619.4,2619.2,7.9485451]
[1727263561499,5.58162151,2619.4,2619.1,2.38]
[1727263561799,5.58162151,2619.4,2619.2,7.9485451]
[1727263562205,5.58162151,2619.4,2619.1,2.38]
[1727263562403,2.37382151,2619.4,2619.1,2.38]
[1727263562607,2.37382151,2619.4,2619.2,8.11401109]
[1727263562792,2.37382151,2619.4,2619.1,2.38]
[1727263562993,0.4011,2619.4,2619.1,2.38]
[1727263563196,2.37382151,2619.4,2619.2,8.1240096]
[1727263563394,2.37382151,2619.4,2619.1,2.38]
[1727263563395,5.58162151,2619.4,2619.1,2.38]
[1727263563800,5.58162151,2619.4,2619.2,8.1240096]
[1727263564306,5.58162151,2619.4,2619.1,2.38]
[1727263564604,5.58162151,2619.4,2619.2,7.79173824]
[1727263565110,5.58162151,2619.4,2619.1,2.38]
[1727263565498,5.58162151,2619.4,2619.2,8.08036779]
[1727263565692,5.58162151,2619.4,2619.1,2.38]
[1727263566099,5.58162151,2619.4,2619.2,7.9931782]
[1727263566295,5.58162151,2619.4,2619.1,2.38]
[1727263566697,5.58162151,2619.4,2619.2,7.9931782]
[1727263566902,5.58162151,2619.4,2619.1,2.38]
[1727263567096,3.6089,2619.4,2619.3,2.38]
[1727263567810,1.97272151,2619.5,2619.3,2.38]
[1727263567996,3.23629028,2619.7,2619.4,0.3668]
[1727263567997,1.97272151,2619.6,2619.4,0.3668]
[1727263568198,2.35442151,2619.7,2619.5,2.7506]
[1727263568513,0.3817,2619.7,2619.5,2.7506]
[1727263568897,1.97272151,2619.9,2619.6,8.21389384]
[1727263569097,0.3817,2619.9,2619.7,2.38]
[1727263571798,5.18052151,2620.0,2619.8,7.91344068]
[1727263571799,1.97272151,2620.0,2619.8,7.91344068]
[1727263571998,1.97272151,2620.2,2619.9,2.7728]
[1727263572203,1.97272151,2620.5,2620.1,2.38]
[1727263572508,0.3948,2620.5,2620.3,2.38]
[1727263574013,1.97272151,2620.9,2620.4,19.19837776]
[1727263574214,0.7937,2621.2,2620.5,3.816]
[1727263574411,0.7937,2621.2,2620.8,2.38]
[1727263574709,3.2078,2621.1,2620.8,2.38]
[1727263577005,3.2078,2621.1,2620.5,0.3802]
[1727263577214,3.2078,2620.8,2620.5,0.3802]
[1727263577412,0.4037,2620.7,2620.5,0.3802]
[1727263577606,0.784,2620.7,2620.5,2.7602]
[1727263578315,0.784,2620.7,2620.5,0.3802]
[1727263578512,1.16,2620.7,2620.2,0.3951]
[1727263578709,1.16,2620.7,2620.3,2.38]
[1727263578909,1.16,2620.7,2620.4,8.21830812]
[1727263579115,1.16,2620.7,2620.3,10.59830812]
[1727263579318,1.16,2620.7,2620.3,2.38]
[1727263579517,1.16,2620.7,2620.4,8.16761624]
[1727263579823,1.16,2620.7,2620.3,2.38]
[1727263580315,1.16,2620.7,2620.4,8.18421677]
[1727263580517,1.16,2620.7,2620.3,2.38]
[1727263580915,1.16,2620.7,2620.4,8.18421677]
[1727263581307,1.16,2620.7,2620.3,2.38]
[1727263581710,1.16,2620.7,2620.4,8.20144669]
[1727263581907,1.16,2620.7,2620.3,2.38]
[1727263582309,1.16,2620.7,2620.5,2.38]
[1727263582512,0.3803,2620.7,2620.5,2.38]
[1727263582709,0.3803,2620.7,2620.6,0.3789]
[1727263582916,0.3803,2620.7,2620.6,8.54239644]
[1727263583111,0.3803,2620.7,2620.6,0.3789]
[1727263583823,0.3803,2620.7,2620.5,2.38]
[1727263584122,0.3803,2620.7,2620.6,8.09154825]
[1727263584621,0.3803,2620.7,2620.5,2.38]
[1727263585120,0.3803,2620.7,2620.6,8.09154825]
[1727263585315,0.3803,2620.7,2620.5,2.38]
[1727263585624,0.3803,2620.7,2620.6,8.20125149]
[1727263586029,0.3803,2620.7,2620.4,8.20125149]
[1727263586320,0.394,2620.6,2620.3,2.768]
[1727263586825,0.394,2620.6,2620.4,8.06876872]
[1727263587308,0.394,2620.6,2620.3,2.768]
[1727263587512,0.7761,2620.6,2620.3,2.768]